bitfinex/quotes_BTCUSD_20241205
["timestamp","ask_amount","ask_price","bid_price","bid_amount"]
[1733437132297,0.10300001,98640.0,98620.0,0.172378]
[1733437132522,0.10300001,98640.0,98621.0,0.09967605]
[1733437132775,0.202763,98637.0,98621.0,0.09967605]
[1733437133227,0.1,98633.0,98621.0,0.09967605]
[1733437133908,0.1,98633.0,98622.0,0.172375]
[1733437134136,0.202773,98632.0,98622.0,0.09967605]
[1733437134375,0.0505536,98632.0,98621.0,0.002]
[1733437134591,0.1,98633.0,98621.0,0.10867605]
[1733437134592,0.202776,98631.0,98621.0,0.10867605]
[1733437134809,0.202786,98627.0,98621.0,0.009]
[1733437135046,0.202791,98624.0,98621.0,0.009]
[1733437135489,0.202791,98624.0,98621.0,0.007]
[1733437135919,0.202791,98624.0,98619.0,0.00017602]
[1733437136590,0.202791,98624.0,98621.0,0.003]
[1733437137242,0.1,98626.0,98619.0,0.00017602]
[1733437137458,0.1,98624.0,98619.0,0.01317602]
[1733437137947,0.1,98624.0,98619.0,0.00417602]
[1733437138159,0.19999909,98620.0,98619.0,0.00417602]
[1733437138381,0.40279709,98620.0,98619.0,0.00417602]
[1733437138816,0.40279709,98620.0,98619.0,0.00017602]
[1733437139899,0.40579709,98620.0,98619.0,0.00017602]
[1733437141820,0.10299909,98620.0,98619.0,0.00017602]
[1733437142038,0.003,98620.0,98619.0,0.00017602]
[1733437142706,0.202791,98624.0,98619.0,0.00017602]
[1733437142930,0.20279,98624.0,98619.0,0.00017602]
[1733437143151,0.003,98620.0,98619.0,0.00017602]
[1733437143369,0.20279,98624.0,98619.0,0.00017602]
[1733437143799,0.003,98620.0,98619.0,0.00017602]
[1733437144513,0.003,98620.0,98619.0,0.00317602]
[1733437144736,0.003,98620.0,98619.0,0.12010887]
[1733437145199,0.003,98620.0,98619.0,0.00317602]
[1733437145422,0.20299909,98620.0,98619.0,0.00317602]
[1733437145850,0.19999909,98620.0,98619.0,0.00017602]
[1733437146065,0.27749909,98620.0,98619.0,0.00017602]
[1733437146307,0.27749909,98620.0,98619.0,0.00317602]
[1733437146588,0.27749909,98620.0,98619.0,0.00017602]
[1733437146791,0.11069909,98561.0,98550.0,0.0008664]
[1733437147009,0.2116437,98561.0,98550.0,0.0008664]
[1733437147231,0.46037514,98561.0,98550.0,0.0008664]
[1733437147713,4.98237514,98561.0,98550.0,0.0008664]
[1733437147939,5.07230625,98561.0,98550.0,0.0008664]
[1733437148123,5.07230625,98561.0,98560.0,0.00145224]
[1733437148401,5.09530625,98561.0,98560.0,2.4e-07]
[1733437148629,0.57330625,98561.0,98560.0,2.4e-07]
[1733437149346,0.55293909,98551.0,98550.0,0.0008664]
[1733437149546,0.65261514,98551.0,98550.0,0.0008664]
[1733437150950,0.55261514,98551.0,98550.0,0.0018664]
[1733437151165,0.55361514,98551.0,98550.0,0.0028664]
[1733437151384,0.65361514,98551.0,98550.0,0.0028664]
[1733437152292,0.65361514,98551.0,98550.0,0.0018664]
[1733437152509,0.73927025,98551.0,98550.0,0.0018664]
[1733437152747,0.74427025,98551.0,98550.0,0.0028664]
[1733437152982,0.74327025,98551.0,98550.0,0.0008664]
[1733437153227,0.73827025,98551.0,98550.0,0.0008664]
[1733437153469,0.73827025,98551.0,98550.0,0.0028664]
[1733437153470,0.74627025,98551.0,98550.0,0.0028664]
[1733437155263,0.66061514,98551.0,98550.0,0.0028664]
[1733437155728,0.65461514,98551.0,98550.0,0.0018664]
[1733437156130,0.66161514,98551.0,98550.0,0.0018664]
[1733437156372,0.66161514,98551.0,98520.0,0.0008655]
[1733437156373,0.55296009,98541.0,98520.0,0.0008655]
[1733437156612,0.85363614,98541.0,98520.0,0.0008655]
[1733437156846,0.65263614,98541.0,98520.0,0.0008655]
[1733437157527,0.76263614,98541.0,98520.0,0.0008655]
[1733437157737,0.84819545,98541.0,98520.0,0.0008655]
[1733437157951,0.76263614,98541.0,98520.0,0.0008655]
[1733437158407,0.65263614,98541.0,98520.0,0.0008655]
[1733437158842,0.65263614,98541.0,98540.0,0.0018658]
[1733437159053,0.65763614,98541.0,98540.0,0.0018658]
[1733437159266,0.66263614,98541.0,98540.0,0.0018658]
[1733437159510,0.74919545,98541.0,98540.0,0.0018658]
[1733437159726,0.51263614,98541.0,98540.0,0.0018658]
[1733437159960,0.41296009,98541.0,98540.0,0.0018658]
[1733437160866,0.40296009,98541.0,98540.0,0.0008658]
[1733437161074,0.40796009,98541.0,98540.0,0.0008658]
[1733437161285,0.50763614,98541.0,98540.0,0.0008658]
[1733437161505,0.72869545,98541.0,98540.0,0.0008658]
[1733437161716,0.15,98540.0,98520.0,0.0008655]
[1733437161985,0.52573445,98541.0,98520.0,0.0008655]
[1733437161986,0.203002,98521.0,98520.0,0.0008655]
[1733437162258,0.57297734,98521.0,98520.0,5e-07]
[1733437162462,0.67297734,98521.0,98500.0,0.48858872]
[1733437162694,0.55304209,98501.0,98500.0,0.48858872]
[1733437163393,0.73581814,98501.0,98500.0,0.48858872]
[1733437163615,0.73581814,98501.0,98463.0,0.0148416]
[1733437163616,0.45305709,98494.0,98463.0,0.0148416]
[1733437163831,0.65273314,98494.0,98467.0,0.172645]
[1733437164044,0.40305709,98494.0,98472.0,0.172637]
[1733437164285,0.50273314,98494.0,98463.0,0.0148416]
[1733437164937,0.19999909,98478.0,98463.0,0.0148416]
[1733437165383,0.09999909,98478.0,98463.0,0.0148416]
[1733437165588,0.20126851,98478.0,98463.0,0.0148416]
[1733437165809,0.19999909,98478.0,98468.0,0.172644]
[1733437166062,0.09999909,98479.0,98468.0,0.172644]
[1733437166287,0.00058546,98478.0,98472.0,0.172636]
[1733437166718,0.00458546,98478.0,98472.0,0.172636]
[1733437166944,0.00058546,98478.0,98472.0,0.172636]
[1733437167624,0.20185387,98478.0,98463.0,0.0148416]
[1733437167629,0.20185387,98478.0,98467.0,0.172645]
[1733437167856,0.20185387,98478.0,98463.0,0.0148416]
[1733437167857,0.20058455,98478.0,98464.0,0.17265]
[1733437168336,0.20058455,98478.0,98463.0,0.0148416]
[1733437168337,0.26125981,98478.0,98463.0,0.0148416]
[1733437168572,0.26125981,98478.0,98464.0,0.172651]
[1733437168805,0.20058455,98478.0,98477.0,0.00517562]
[1733437170081,0.10058455,98478.0,98477.0,0.00517562]
[1733437171655,0.00058546,98478.0,98477.0,0.00517562]
[1733437172739,0.00058546,98478.0,98477.0,0.00117562]
[1733437173154,0.00058546,98478.0,98477.0,0.00517562]
[1733437173360,0.00058546,98478.0,98477.0,0.00717562]
[1733437177141,0.00058546,98478.0,98477.0,0.10685167]
[1733437179789,0.00058546,98478.0,98477.0,0.12721126]
[1733437180476,0.00058546,98478.0,98477.0,0.12521126]
[1733437180691,0.00158546,98478.0,98477.0,0.12821126]
[1733437180908,0.00158546,98478.0,98477.0,0.12421126]
[1733437181359,0.00058546,98478.0,98477.0,0.12121126]
[1733437181574,0.00158546,98478.0,98477.0,0.12421126]
[1733437182712,0.00258546,98478.0,98477.0,0.13321126]
[1733437183125,0.00258546,98478.0,98477.0,0.01317562]
[1733437183126,1.7162606,98478.0,98477.0,0.01317562]
[1733437183129,1.8162606,98478.0,98477.0,0.01317562]
[1733437183325,0.62817982,98478.0,98477.0,0.00417562]
[1733437183529,4.52617982,98478.0,98477.0,0.0104004]
[1733437183735,4.52617982,98478.0,98450.0,0.0008666]
[1733437183736,5.13066789,98478.0,98450.0,0.0008666]
[1733437183987,0.55310409,98471.0,98450.0,0.0008666]
[1733437184183,4.99086821,98471.0,98450.0,0.0008666]
[1733437184488,5.22886821,98471.0,98450.0,0.0008666]
[1733437184909,1.85386821,98471.0,98470.0,0.0018664]
[1733437185124,0.40311809,98464.0,98434.0,0.00120179]
[1733437185367,0.34999909,98441.0,98434.0,0.00120179]
[1733437185653,0.65284214,98441.0,98434.0,0.00120179]
[1733437186311,0.55316609,98441.0,98434.0,0.00120179]
[1733437186746,0.75837575,98441.0,98434.0,0.00120179]
[1733437186995,0.75837575,98441.0,98370.0,0.0008666]
[1733437186996,0.19999909,98401.0,98370.0,0.0008666]
[1733437187213,0.19999909,98401.0,98381.0,0.172797]
[1733437187437,0.40324809,98401.0,98381.0,0.172797]
[1733437187659,0.40324809,98401.0,98376.0,0.172804]
[1733437187901,0.19999909,98401.0,98387.0,0.172786]
[1733437188132,0.19999909,98401.0,98378.0,0.172801]
[1733437188342,0.30025952,98401.0,98371.0,0.172813]
[1733437188572,0.30025952,98401.0,98381.0,0.172796]
[1733437188802,0.20358347,98401.0,98381.0,0.172796]
[1733437189007,0.20458347,98401.0,98370.0,0.0008666]
[1733437189514,0.11158347,98401.0,98382.0,0.172795]
[1733437189715,0.21285382,98401.0,98382.0,0.34559]
[1733437189941,0.21158347,98401.0,98382.0,0.34559]
[1733437190171,0.21158347,98401.0,98382.0,0.172795]
[1733437190388,0.30025952,98401.0,98370.0,0.0008666]
[1733437190847,0.30225952,98401.0,98370.0,0.0008666]
[1733437191101,0.30225952,98401.0,98372.0,0.172813]
[1733437191311,0.30225952,98401.0,98370.0,0.0008666]
[1733437191312,0.45326709,98392.0,98370.0,0.0008666]
[1733437191516,0.65294314,98392.0,98370.0,0.0008666]
[1733437192626,0.55326709,98392.0,98370.0,0.1736816]
[1733437192840,0.40326709,98392.0,98370.0,0.1736816]
[1733437193305,0.41226709,98392.0,98370.0,0.1736816]
[1733437193735,0.40326709,98392.0,98370.0,0.1736816]
[1733437193935,0.20899909,98392.0,98375.0,0.172807]
[1733437194230,0.21399909,98392.0,98375.0,0.172807]
[1733437194655,0.22299909,98392.0,98375.0,0.172807]
[1733437194871,0.21799909,98392.0,98375.0,0.172807]
[1733437195317,0.122,98392.0,98380.0,0.172797]
[1733437195528,0.122,98392.0,98390.0,0.172781]
[1733437195955,0.122,98392.0,98380.0,0.172797]
[1733437196214,0.32294576,98392.0,98370.0,0.0008666]
[1733437196426,0.29967514,98392.0,98370.0,0.0008666]
[1733437196634,0.30667514,98392.0,98370.0,0.0008666]
[1733437196877,0.40759436,98392.0,98370.0,0.0008666]
[1733437197602,0.081,98440.0,98392.0,0.023]
[1733437197806,0.203207,98422.0,98400.0,0.172764]
[1733437198013,0.203229,98411.0,98391.0,0.00122796]
[1733437198222,0.203252,98400.0,98391.0,0.00122796]
[1733437198439,0.00127044,98399.0,98391.0,0.00122796]
[1733437198646,0.20324,98406.0,98391.0,0.00122796]
[1733437198863,0.0012704,98405.0,98391.0,0.00122796]
[1733437199099,0.0012704,98404.0,98391.0,0.00122796]
[1733437199328,0.0012704,98404.0,98392.0,0.172778]
[1733437199547,0.006,98392.0,98391.0,0.00222796]
[1733437199764,0.203231,98411.0,98391.0,0.10290401]
[1733437199974,0.00127026,98410.0,98392.0,0.09967605]
[1733437200181,0.00127026,98414.0,98392.0,0.09967605]
[1733437200618,0.203204,98424.0,98398.0,0.172767]
[1733437200862,0.203212,98420.0,98400.0,0.172764]
[1733437201073,0.00127018,98419.0,98400.0,0.21728471]
[1733437201332,0.00127018,98423.0,98400.0,0.172764]
[1733437201551,0.203213,98419.0,98400.0,0.172764]
[1733437201770,0.00127018,98418.0,98400.0,0.172764]
[1733437201984,0.00127018,98423.0,98400.0,0.172764]
[1733437202446,0.203265,98394.0,98392.0,0.002]
[1733437202682,0.203268,98392.0,98376.0,0.172804]
[1733437202898,0.203268,98392.0,98376.0,0.172805]
[1733437203111,0.203268,98392.0,98380.0,0.172798]
[1733437203602,0.203268,98392.0,98370.0,0.0008666]
[1733437203603,0.1686522,98392.0,98370.0,0.0008666]
[1733437203879,0.203308,98373.0,98370.0,0.0008666]
[1733437204087,0.203311,98371.0,98370.0,0.0008666]
[1733437204311,0.30298705,98371.0,98370.0,0.0008666]
[1733437205481,0.30357143,98371.0,98370.0,0.0008666]
[1733437206363,0.32057143,98371.0,98370.0,0.0018666]
[1733437206576,0.22089538,98371.0,98370.0,0.0008666]
[1733437206801,0.21289538,98371.0,98370.0,0.0008666]
[1733437207030,0.22089538,98371.0,98370.0,0.0018666]
[1733437207243,0.21689538,98371.0,98370.0,0.0018666]
[1733437207464,0.22489538,98371.0,98370.0,0.0028666]
[1733437207709,0.28304582,98371.0,98370.0,0.0028666]
[1733437207935,1.68519717,98371.0,98370.0,0.00036541]
[1733437208166,0.22389538,98371.0,98370.0,0.00036541]
[1733437208628,0.20789538,98371.0,98355.0,0.172841]
[1733437208843,0.00458438,98371.0,98353.0,0.172845]
[1733437209098,0.01158438,98371.0,98370.0,0.001]
[1733437209310,0.01158438,98371.0,98365.0,0.1876056]
[1733437209529,0.01758438,98371.0,98370.0,0.001]
[1733437209741,0.00658438,98371.0,98370.0,0.001]
[1733437209957,0.00658438,98371.0,98370.0,0.10067605]
[1733437210181,0.01058438,98371.0,98370.0,0.10067605]
[1733437210400,0.00458438,98371.0,98370.0,0.09967605]
[1733437210624,0.00158438,98371.0,98370.0,0.09967605]
[1733437210862,0.00758438,98371.0,98370.0,0.10067605]
[1733437211093,0.01058438,98371.0,98370.0,0.10067605]
[1733437211317,0.01058438,98371.0,98370.0,0.001]
[1733437211541,0.00758438,98371.0,98370.0,0.0018672]
[1733437211977,0.00058438,98371.0,98370.0,0.0018672]
[1733437212222,0.00158438,98371.0,98370.0,0.0088672]
[1733437212919,0.00558438,98371.0,98370.0,0.0088672]
[1733437213120,0.00458438,98371.0,98370.0,0.0008672]
[1733437213340,0.00458438,98371.0,98370.0,0.1736832]
[1733437213778,0.00058438,98371.0,98370.0,0.1736832]
[1733437213986,0.00258438,98371.0,98370.0,0.0008672]
[1733437214438,0.00058438,98371.0,98370.0,0.0008672]
[1733437215096,0.00358438,98371.0,98370.0,0.0008672]
[1733437215313,0.00358438,98371.0,98370.0,0.0018672]
[1733437215570,0.00358438,98371.0,98370.0,0.1746832]
[1733437215803,0.00358438,98371.0,98370.0,0.0008672]
[1733437216079,0.00358438,98371.0,98370.0,0.0018672]
[1733437216304,0.31656043,98371.0,98337.0,0.00041926]
[1733437216513,0.31656043,98371.0,98334.0,0.00041926]
[1733437216514,0.203364,98346.0,98334.0,0.00041926]
[1733437216733,0.00127103,98345.0,98334.0,0.00041926]
[1733437216944,0.203356,98350.0,98334.0,0.00041926]
[1733437216945,0.203373,98342.0,98334.0,0.00041926]
[1733437217158,0.00127113,98341.0,98334.0,0.00041926]
[1733437217607,0.00127113,98341.0,98321.0,0.172902]
[1733437217834,0.00127113,98341.0,98321.0,0.345804]
[1733437218042,0.00127113,98341.0,98326.0,0.172892]
[1733437218687,0.00185515,98341.0,98337.0,0.001]
[1733437219123,0.203376,98340.0,98337.0,0.001]
[1733437219581,0.20338,98338.0,98337.0,0.001]
[1733437219793,0.203376,98340.0,98337.0,0.001]
[1733437220025,0.00958402,98341.0,98333.0,0.0025]
[1733437220026,0.00358402,98341.0,98333.0,0.0015]
[1733437220264,0.00058402,98341.0,98333.0,0.0015]
[1733437220746,0.003,98340.0,98334.0,0.16271]
[1733437221181,0.00058402,98341.0,98334.0,0.18428672]
[1733437221388,0.00058402,98341.0,98334.0,0.16271]
[1733437221598,0.00358402,98341.0,98334.0,0.16271]
[1733437221806,0.00358402,98341.0,98336.0,0.162707]
[1733437222041,0.00358402,98341.0,98336.0,0.325414]
[1733437222249,0.005,98338.0,98337.0,0.001]
[1733437222683,0.005,98338.0,98336.0,0.162707]
[1733437223116,0.003,98340.0,98336.0,0.162707]
[1733437223567,0.005,98338.0,98337.0,0.001]
[1733437223817,0.007,98338.0,98337.0,0.001]
[1733437224241,0.005,98338.0,98337.0,0.001]
[1733437224901,0.003,98340.0,98336.0,0.325413]
[1733437225144,0.005,98338.0,98336.0,0.42608905]
[1733437225371,0.005,98338.0,98336.0,0.42508905]
[1733437225596,0.01,98338.0,98337.0,0.001]
[1733437225818,0.01,98338.0,98337.0,0.10067605]
[1733437226041,0.00058402,98341.0,98338.0,0.325408]
[1733437226270,0.00058402,98341.0,98340.0,0.1627]
[1733437226553,0.00058402,98341.0,98340.0,0.32140466]
[1733437227408,0.00358402,98341.0,98340.0,0.32140466]
[1733437227823,0.00058402,98341.0,98340.0,0.32140466]
[1733437228033,0.00058402,98341.0,98340.0,0.26237605]
[1733437228525,0.00058402,98341.0,98337.0,0.001]
[1733437229136,0.00058402,98341.0,98340.0,0.002]
[1733437229348,0.00058402,98341.0,98333.0,0.0015]
[1733437229553,0.00058402,98341.0,98334.0,0.26238605]
[1733437229779,0.00258402,98341.0,98334.0,0.26238605]
[1733437230000,0.00358402,98341.0,98334.0,0.42509605]
[1733437230221,0.00358402,98341.0,98334.0,0.26238605]
[1733437230482,0.00258402,98341.0,98334.0,0.26238605]
[1733437230692,0.00358402,98341.0,98334.0,0.26238605]
[1733437230897,0.00158402,98341.0,98334.0,0.26238605]
[1733437231326,0.00358402,98341.0,98334.0,0.26238605]
[1733437232021,0.00558402,98341.0,98334.0,0.26238605]
[1733437235148,0.00558402,98341.0,98334.0,0.09967605]
[1733437236313,0.02647832,98341.0,98334.0,0.09967605]
[1733437236535,0.00558402,98341.0,98334.0,0.09967605]
[1733437237409,0.0053294,98341.0,98334.0,0.09967605]
[1733437240042,0.0053294,98341.0,98340.0,0.1627]
[1733437240043,0.00406282,98341.0,98340.0,0.1627]
[1733437240259,0.00406282,98341.0,98340.0,0.26237605]
[1733437240884,0.00406282,98341.0,98340.0,0.33630546]
[1733437241099,6.282e-05,98341.0,98340.0,0.33630546]
[1733437241603,6.282e-05,98341.0,98333.0,0.0015]
[1733437241604,0.00206282,98341.0,98333.0,0.0015]
[1733437241823,0.002,98341.0,98335.0,0.162709]
[1733437242026,0.002,98341.0,98336.0,0.09967605]
[1733437242299,0.203363,98346.0,98336.0,0.09967605]
[1733437242504,0.003,98341.0,98336.0,0.10026007]
[1733437243140,0.004,98341.0,98337.0,0.162705]
[1733437243348,0.005,98341.0,98339.0,0.162702]
[1733437243561,0.005,98341.0,98340.0,0.09967605]
[1733437244203,0.003,98341.0,98340.0,0.09967605]
[1733437244345,0.001,98341.0,98340.0,0.09967605]
[1733437244560,0.003,98341.0,98340.0,0.09967605]
[1733437244773,0.002,98341.0,98340.0,0.09967605]
[1733437245159,0.004,98341.0,98340.0,0.09967605]
[1733437245367,0.005,98341.0,98340.0,0.09967605]
[1733437245768,0.004,98341.0,98340.0,0.09967605]
[1733437246191,0.005,98341.0,98340.0,0.09967605]
[1733437246629,0.0836,98341.0,98340.0,0.09967605]
[1733437246843,0.0836,98341.0,98336.0,0.00058402]
[1733437246844,0.406752,98340.0,98336.0,0.00058402]
[1733437247269,0.20339,98333.0,98329.0,6e-05]
[1733437247487,0.203394,98331.0,98329.0,6e-05]
[1733437247743,0.24419953,98331.0,98329.0,6e-05]
[1733437247954,0.203394,98331.0,98329.0,6e-05]
[1733437248161,0.203394,98331.0,98300.0,0.0008666]
[1733437248162,0.20344,98309.0,98306.0,0.0012803]
[1733437248602,0.33174,98309.0,98306.0,0.0012803]
[1733437249484,0.33574,98309.0,98306.0,0.0012803]
[1733437249695,0.33632366,98309.0,98306.0,0.0012803]
[1733437250383,0.33632366,98309.0,98300.0,0.0008666]
[1733437250384,0.203456,98301.0,98300.0,0.0008666]
[1733437250607,0.0033,98300.0,98274.0,0.00041926]
[1733437250830,0.203477,98291.0,98274.0,0.00041926]
[1733437251762,0.203477,98291.0,98263.0,0.00130647]
[1733437251992,0.203517,98272.0,98267.0,0.0139932]
[1733437252210,0.203509,98276.0,98267.0,0.0139932]
[1733437252433,0.203503,98279.0,98267.0,0.0139932]
[1733437252659,0.00127193,98278.0,98267.0,0.0139932]
[1733437253321,0.203506,98277.0,98267.0,0.0139932]
[1733437253541,0.203508,98276.0,98263.0,0.00029967]
[1733437253773,0.203508,98276.0,98264.0,0.09967605]
[1733437254016,0.203508,98276.0,98264.0,0.12220743]
[1733437254258,0.20351,98275.0,98264.0,0.09967605]
[1733437254702,0.203529,98266.0,98263.0,0.00029967]
[1733437254943,0.203533,98264.0,98263.0,0.00029967]
[1733437255179,0.203533,98264.0,98249.0,0.16194374]
[1733437255420,0.203533,98264.0,98250.0,0.09823115]
[1733437255873,0.203533,98264.0,98250.0,0.0978416]
[1733437256091,0.203533,98264.0,98263.0,0.001]
[1733437256556,0.204533,98264.0,98263.0,0.001]
[1733437257014,0.203535,98263.0,98253.0,0.15980203]
[1733437257237,0.001,98264.0,98253.0,0.25947808]
[1733437257718,0.002,98264.0,98253.0,0.25947808]
[1733437257916,0.001,98264.0,98253.0,0.25947808]
[1733437258129,0.001,98263.0,98253.0,0.26547808]
[1733437258363,0.001,98263.0,98254.0,0.0448314]
[1733437258587,0.001,98263.0,98255.0,0.162841]
[1733437258804,0.203537,98262.0,98253.0,0.012]
[1733437259022,0.001,98264.0,98253.0,0.006]
[1733437259470,0.203535,98263.0,98253.0,0.006]
[1733437259687,0.001,98264.0,98253.0,0.006]
[1733437259918,0.001,98264.0,98255.0,0.162841]
[1733437260141,0.001,98264.0,98258.0,0.162835]
[1733437260364,0.001,98264.0,98255.0,0.162841]
[1733437260855,0.203516,98272.0,98255.0,0.162841]
[1733437261082,0.203491,98285.0,98256.0,0.09967605]
[1733437261307,0.203506,98277.0,98265.0,0.162824]
[1733437261530,0.00127196,98276.0,98265.0,0.162824]
[1733437261755,0.00185526,98278.0,98265.0,0.162824]
[1733437261981,0.001,98264.0,98235.0,0.3]
[1733437262206,0.001,98264.0,98247.0,0.162854]
[1733437262207,0.253336,98263.0,98247.0,0.162854]
[1733437262424,0.00127214,98262.0,98251.0,0.162848]
[1733437262642,0.001,98264.0,98251.0,0.162848]
[1733437263098,0.001,98264.0,98243.0,0.16286]
[1733437263099,0.001,98264.0,98252.0,0.09967605]
[1733437263339,0.001,98264.0,98235.0,0.15]
[1733437263567,0.001,98264.0,98251.0,0.162848]
[1733437264036,0.00127215,98266.0,98252.0,0.162846]
[1733437264262,0.001,98264.0,98252.0,0.162846]
[1733437264504,0.001,98264.0,98250.0,0.0038678]
[1733437264505,0.0498,98262.0,98250.0,0.0038678]
[1733437264731,0.203548,98257.0,98250.0,0.0008678]
[1733437264946,0.00127222,98256.0,98250.0,0.0008678]
[1733437265166,0.407103,98255.0,98250.0,0.0008678]
[1733437265395,0.00127222,98254.0,98250.0,0.0008678]
[1733437265635,0.00127222,98254.0,98241.0,0.162864]
[1733437265636,0.00127224,98261.0,98241.0,0.15998243]
[1733437265857,0.203555,98254.0,98242.0,0.09967605]
[1733437266100,0.0498,98252.0,98222.0,0.49320008]
[1733437266347,0.203614,98225.0,98222.0,0.49320008]
[1733437266589,0.00127268,98224.0,98222.0,0.49320008]
[1733437267078,0.460218,98223.0,98222.0,0.36510008]
[1733437267990,0.46080095,98223.0,98222.0,0.36510008]
[1733437268233,0.46480095,98223.0,98222.0,0.36510008]
[1733437268678,0.33780095,98223.0,98222.0,0.36510008]
[1733437268901,0.28800095,98223.0,98222.0,0.36510008]
[1733437269370,0.29000095,98223.0,98222.0,0.36510008]
[1733437269821,0.28600095,98223.0,98222.0,0.36510008]
[1733437270043,0.28800095,98223.0,98222.0,0.36510008]
[1733437271012,0.29200095,98223.0,98222.0,0.36510008]
[1733437271242,0.29200095,98223.0,98197.0,0.162936]
[1733437271243,0.203641,98212.0,98211.0,0.02031484]
[1733437271920,0.203641,98212.0,98188.0,0.00041926]
[1733437272131,0.203641,98212.0,98210.0,0.0207728]
[1733437272132,0.00127293,98211.0,98210.0,0.0207728]
[1733437272347,0.10094898,98211.0,98210.0,0.0207728]
[1733437272778,0.0033,98200.0,98177.0,0.00177808]
[1733437273010,0.203684,98191.0,98177.0,0.00177808]
[1733437273253,0.30336005,98191.0,98177.0,0.00177808]
[1733437275963,0.31794264,98191.0,98190.0,0.0008679]
[1733437277927,0.77394264,98191.0,98190.0,0.0008679]
[1733437278141,0.80094264,98191.0,98190.0,0.0008679]
[1733437278848,0.63794264,98191.0,98190.0,0.0008679]
[1733437279074,0.31794264,98191.0,98190.0,0.0008679]
[1733437280854,0.31294264,98191.0,98190.0,0.0008679]
[1733437281090,0.30894264,98191.0,98190.0,0.0008679]
[1733437281329,0.00558259,98191.0,98190.0,0.0008679]
[1733437281556,0.01585586,98191.0,98190.0,0.0008679]
[1733437281995,0.001734,98200.0,98196.0,0.325878]
[1733437282268,0.001734,98200.0,98198.0,0.162936]
[1733437282477,0.001734,98200.0,98191.0,0.162947]
[1733437282703,0.005,98191.0,98190.0,0.00145049]
[1733437283134,0.012,98191.0,98190.0,0.10112654]
[1733437283853,0.005,98191.0,98190.0,0.10112654]
[1733437284070,0.002734,98200.0,98199.0,0.162934]
[1733437284292,0.002734,98200.0,98199.0,0.26261005]
[1733437284506,0.003734,98200.0,98199.0,0.26261005]
[1733437284939,0.002734,98200.0,98199.0,0.26261005]
[1733437285140,0.002734,98200.0,98199.0,0.26361005]
[1733437285354,1.6,98215.0,98214.0,0.162909]
[1733437285355,1.597734,98215.0,98214.0,0.162909]
[1733437285580,1.597734,98215.0,98214.0,0.26258505]
[1733437286306,1.597734,98215.0,98214.0,0.39198505]
[1733437286525,1.597734,98215.0,98214.0,0.41498505]
[1733437286738,1.597734,98215.0,98214.0,0.50406656]
[1733437286953,1.597734,98215.0,98214.0,0.41498505]
[1733437287406,1.597734,98215.0,98214.0,0.41998505]
[1733437287635,1.597734,98215.0,98214.0,0.41498505]
[1733437287873,1.597734,98215.0,98214.0,0.43501989]
[1733437288093,1.597734,98215.0,98214.0,0.162909]
[1733437288304,1.597734,98215.0,98214.0,0.163909]
[1733437288748,1.597734,98215.0,98214.0,0.26258505]
[1733437288963,1.597734,98215.0,98214.0,0.27158505]
[1733437288964,1.598734,98215.0,98214.0,0.27158505]
[1733437289178,1.598734,98215.0,98214.0,0.28058505]
[1733437289393,1.598734,98215.0,98214.0,0.29458505]
[1733437289614,1.597734,98215.0,98214.0,0.29058505]
[1733437289886,1.597734,98215.0,98214.0,0.29358505]
[1733437290344,1.597734,98215.0,98214.0,0.30258505]
[1733437290792,1.597734,98215.0,98214.0,0.28858505]
[1733437291034,1.597734,98215.0,98214.0,0.28558505]
[1733437291267,1.597734,98215.0,98214.0,0.26258505]
[1733437291942,1.598734,98215.0,98214.0,0.26758505]
[1733437292160,1.599734,98215.0,98214.0,0.27658505]
[1733437292398,1.598734,98215.0,98214.0,0.27158505]
[1733437292629,1.597734,98215.0,98208.0,0.162918]
[1733437292856,1.599734,98215.0,98214.0,0.014]
[1733437293540,1.599734,98215.0,98182.0,0.15]
[1733437293541,0.203703,98182.0,98154.0,0.08993975]
[1733437293793,0.203707,98180.0,98154.0,0.163007]
[1733437294016,0.00077179,98179.0,98158.0,0.163]
[1733437294244,0.203711,98178.0,98154.0,0.163007]
[1733437294461,0.203711,98178.0,98150.0,0.28338973]
[1733437294682,0.203705,98181.0,98156.0,0.163005]
[1733437294914,0.203709,98179.0,98155.0,0.163007]
[1733437295125,0.00135438,98178.0,98155.0,0.163007]
[1733437295351,0.00235438,98178.0,98163.0,0.08993975]
[1733437295596,0.00235438,98178.0,98150.0,0.0008679]
[1733437295836,0.00135438,98178.0,98150.0,0.0008679]
[1733437296304,0.00535438,98178.0,98150.0,0.0008679]
[1733437296541,0.00535438,98178.0,98151.0,0.08993975]
[1733437296750,0.00535438,98178.0,98150.0,0.0008679]
[1733437296751,0.12735438,98178.0,98150.0,0.0008679]
[1733437296960,0.00535438,98178.0,98150.0,0.0008679]
[1733437297825,0.00735438,98178.0,98150.0,0.0008679]
[1733437298507,0.10703043,98178.0,98150.0,0.0008679]
[1733437299016,3.63050573,98178.0,98150.0,0.0008679]
[1733437299234,5.81673394,98178.0,98150.0,0.0008679]
[1733437299874,1.19505789,98178.0,98150.0,0.0008679]
[1733437300085,0.00658259,98178.0,98150.0,0.0008679]
[1733437300322,0.00735438,98178.0,98150.0,0.0008679]
[1733437301020,0.00658259,98178.0,98159.0,0.162999]
[1733437302085,0.00658259,98178.0,98155.0,0.00101859]
[1733437302291,0.00658259,98178.0,98159.0,0.163]
[1733437302534,0.00658259,98178.0,98166.0,0.0499]
[1733437303220,0.00735438,98178.0,98166.0,0.0499]
[1733437303437,0.00735438,98178.0,98150.0,0.0008679]
[1733437303438,2.45860573,98178.0,98150.0,0.0008679]
[1733437303687,0.20376,98155.0,98150.0,0.0008679]
[1733437303918,0.203752,98159.0,98150.0,0.0008679]
[1733437304177,0.00077179,98158.0,98150.0,0.0008679]
[1733437304402,0.20374,98164.0,98150.0,0.0008679]
[1733437304621,0.00077179,98163.0,98150.0,0.0008679]
[1733437305902,0.001,98155.0,98150.0,0.0068679]
[1733437306119,0.00077179,98163.0,98150.0,0.0008679]
[1733437306338,0.00077179,98163.0,98150.0,0.0078679]
[1733437306591,0.00177179,98163.0,98150.0,0.0078679]
[1733437307057,0.001,98155.0,98150.0,0.0108679]
[1733437307279,0.00077179,98163.0,98150.0,0.0018679]
[1733437307691,0.00177179,98163.0,98150.0,0.0048679]
[1733437308140,0.001,98163.0,98151.0,0.163014]
[1733437308348,0.002,98163.0,98151.0,0.163014]